[Event "Titled Tuesday Blitz April 25 Early 2023"]
[White "Bosnjak, Petar"]
[Black "mohsengabr2002"]
[WhiteFideId "14532581"]
[WhiteElo "2227"]
[BlackElo "2338"]
[Result "1-0"]
[Round "02"]
[TimeControl "180+2"]
[Date "2023.04.25"]
[WhiteClock "0:01:56"]
[BlackClock "0:01:32"]

1. d4 {[%clk 0:03:00]}  d5 {[%clk 0:02:57]} 2. c4 {[%clk 0:03:01]}  e6 {[%clk 0:02:57]} 3. Nc3 {[%clk 0:03:00]}  Nf6 {[%clk 0:02:56]} 4. cxd5 {[%clk 0:03:00]}  exd5 {[%clk 0:02:56]} 5. Bg5 {[%clk 0:03:00]}  c6 {[%clk 0:02:56]} 6. e3 {[%clk 0:03:01]}  Be7 {[%clk 0:02:56]} 7. Bd3 {[%clk 0:03:01]}  Nbd7 {[%clk 0:02:53]} 8. Qc2 {[%clk 0:03:01]}  Nf8 {[%clk 0:02:53]} 9. Bh4 {[%clk 0:02:59]}  Ng6 {[%clk 0:02:51]} 10. Bg3 {[%clk 0:02:59]}  Nh5 {[%clk 0:02:51]} 11. Nf3 {[%clk 0:02:57]}  Nxg3 {[%clk 0:02:48]} 12. hxg3 {[%clk 0:02:58]}  Bf6 {[%clk 0:02:43]} 13. b4 {[%clk 0:02:53]}  O-O {[%clk 0:02:28]} 14. O-O {[%clk 0:02:40]}  Re8 {[%clk 0:02:26]} 15. b5 {[%clk 0:02:36]}  Qd6 {[%clk 0:02:21]} 16. bxc6 {[%clk 0:02:33]}  bxc6 {[%clk 0:02:21]} 17. Na4 {[%clk 0:02:33]}  Rb8 {[%clk 0:02:15]} 18. Rab1 {[%clk 0:02:30]}  Bg4 {[%clk 0:02:09]} 19. Nc5 {[%clk 0:02:29]}  Be7 {[%clk 0:01:58]} 20. Rfc1 {[%clk 0:02:22]}  Bxf3 {[%clk 0:01:50]} 21. gxf3 {[%clk 0:02:21]}  Qf6 {[%clk 0:01:50]} 22. Nd7 {[%clk 0:02:13]}  Qd6 {[%clk 0:01:39]} 23. Nxb8 {[%clk 0:02:12]}  Rxb8 {[%clk 0:01:39]} 24. Rxb8+ {[%clk 0:02:11]}  Qxb8 {[%clk 0:01:39]} 25. Qxc6 {[%clk 0:02:12]}  Nf8 {[%clk 0:01:36]} 26. Qxd5 {[%clk 0:02:08]}  Qb2 {[%clk 0:01:36]} 27. Rc7 {[%clk 0:01:57]}  Qc1+ {[%clk 0:01:32]} 28. Rxc1 {[%clk 0:01:56]} 1-0


[Site "https://www.chess.com"]

[Event "Titled Tuesday Blitz April 25 Early 2023"]
[White "Postnikov, Daniil"]
[Black "crosky"]
[WhiteFideId "4166329"]
[WhiteElo "2261"]
[BlackElo "2336"]
[Result "1-0"]
[Round "02"]
[TimeControl "180+2"]
[Date "2023.04.25"]
[WhiteClock "0:02:21"]
[BlackClock "0:02:30"]

1. e4 {[%clk 0:03:00]}  c6 {[%clk 0:03:00]} 2. d4 {[%clk 0:02:59]}  d5 {[%clk 0:03:00]} 3. e5 {[%clk 0:02:59]}  Bf5 {[%clk 0:03:00]} 4. Nf3 {[%clk 0:02:56]}  e6 {[%clk 0:02:59]} 5. c4 {[%clk 0:02:56]}  Ne7 {[%clk 0:02:57]} 6. h4 {[%clk 0:02:52]}  h6 {[%clk 0:02:43]} 7. Nc3 {[%clk 0:02:49]}  Nd7 {[%clk 0:02:42]} 8. Qb3 {[%clk 0:02:39]}  Qb6 {[%clk 0:02:41]} 9. c5 {[%clk 0:02:34]}  Qc7 {[%clk 0:02:40]} 10. Be3 {[%clk 0:02:25]}  b6 {[%clk 0:02:39]} 11. cxb6 {[%clk 0:02:23]}  axb6 {[%clk 0:02:39]} 12. Rc1 {[%clk 0:02:22]}  c5 {[%clk 0:02:30]} 13. Nb5 {[%clk 0:02:21]} 1-0


[Site "https://www.chess.com"]

[Event "Titled Tuesday Blitz April 25 Early 2023"]
[White "ArrestingPieces"]
[Black "Bilan, Danila"]
[BlackFideId "24161918"]
[WhiteElo "2328"]
[BlackElo "2182"]
[Result "1-0"]
[Round "02"]
[TimeControl "180+2"]
[Date "2023.04.25"]
[WhiteClock "0:00:13"]
[BlackClock "0:00:06"]

1. e4 {[%clk 0:03:00]}  c6 {[%clk 0:03:00]} 2. d4 {[%clk 0:02:59]}  d5 {[%clk 0:03:01]} 3. exd5 {[%clk 0:03:00]}  cxd5 {[%clk 0:03:01]} 4. c4 {[%clk 0:03:01]}  Nf6 {[%clk 0:03:01]} 5. Nc3 {[%clk 0:03:02]}  Nc6 {[%clk 0:03:02]} 6. Nf3 {[%clk 0:03:01]}  Bg4 {[%clk 0:03:02]} 7. cxd5 {[%clk 0:03:00]}  Nxd5 {[%clk 0:03:02]} 8. Be2 {[%clk 0:03:01]}  e6 {[%clk 0:02:59]} 9. h3 {[%clk 0:03:01]}  Bh5 {[%clk 0:02:54]} 10. O-O {[%clk 0:03:01]}  Be7 {[%clk 0:02:49]} 11. Qb3 {[%clk 0:02:59]}  Qb6 {[%clk 0:02:18]} 12. Nxd5 {[%clk 0:02:59]}  Qxb3 {[%clk 0:02:17]} 13. Nc7+ {[%clk 0:02:58]}  Kd7 {[%clk 0:02:14]} 14. axb3 {[%clk 0:02:57]}  Kxc7 {[%clk 0:02:14]} 15. Be3 {[%clk 0:02:57]}  Rhd8 {[%clk 0:01:47]} 16. Rfc1 {[%clk 0:02:37]}  Rac8 {[%clk 0:01:20]} 17. g4 {[%clk 0:02:13]}  Bg6 {[%clk 0:01:05]} 18. Ne5 {[%clk 0:02:13]}  Kb8 {[%clk 0:00:47]} 19. Nxc6+ {[%clk 0:01:28]}  Rxc6 {[%clk 0:00:32]} 20. Rxc6 {[%clk 0:01:28]}  bxc6 {[%clk 0:00:33]} 21. d5 {[%clk 0:01:29]}  cxd5 {[%clk 0:00:25]} 22. Rxa7 {[%clk 0:01:27]}  d4 {[%clk 0:00:15]} 23. Rxe7 {[%clk 0:01:26]}  dxe3 {[%clk 0:00:15]} 24. fxe3 {[%clk 0:01:25]}  Rd2 {[%clk 0:00:16]} 25. Bf3 {[%clk 0:01:24]}  Rxb2 {[%clk 0:00:15]} 26. Rb7+ {[%clk 0:01:24]}  Kc8 {[%clk 0:00:15]} 27. b4 {[%clk 0:01:22]}  e5 {[%clk 0:00:14]} 28. Bd5 {[%clk 0:01:20]}  f5 {[%clk 0:00:10]} 29. Rxg7 {[%clk 0:00:36]}  fxg4 {[%clk 0:00:10]} 30. Be6+ {[%clk 0:00:24]}  Kd8 {[%clk 0:00:05]} 31. Rb7 {[%clk 0:00:22]}  Be4 {[%clk 0:00:01]} 32. Rb5 {[%clk 0:00:20]}  Ke7 {[%clk 0:00:02]} 33. Bxg4 {[%clk 0:00:20]}  Rg2+ {[%clk 0:00:01]} 34. Kf1 {[%clk 0:00:20]}  Rb2 {[%clk 0:00:02]} 35. Rxe5+ {[%clk 0:00:20]}  Kf6 {[%clk 0:00:01]} 36. Rxe4 {[%clk 0:00:21]}  Kg5 {[%clk 0:00:01]} 37. Rf4 {[%clk 0:00:21]}  h5 {[%clk 0:00:02]} 38. Bf5 {[%clk 0:00:17]}  Rb3 {[%clk 0:00:02]} 39. Kf2 {[%clk 0:00:16]}  Rb2+ {[%clk 0:00:03]} 40. Kf3 {[%clk 0:00:17]}  h4 {[%clk 0:00:03]} 41. Bd3 {[%clk 0:00:16]}  Rh2 {[%clk 0:00:03]} 42. Rg4+ {[%clk 0:00:14]}  Kh5 {[%clk 0:00:04]} 43. Bf1 {[%clk 0:00:14]}  Rb2 {[%clk 0:00:03]} 44. b5 {[%clk 0:00:13]}  Rb1 {[%clk 0:00:04]} 45. Be2 {[%clk 0:00:13]}  Rh1 {[%clk 0:00:05]} 46. Rb4 {[%clk 0:00:13]}  Rxh3+ {[%clk 0:00:05]} 47. Kf2+ {[%clk 0:00:13]}  Kg6 {[%clk 0:00:04]} 48. b6 {[%clk 0:00:12]}  Rh2+ {[%clk 0:00:05]} 49. Ke1 {[%clk 0:00:12]}  Rh1+ {[%clk 0:00:06]} 50. Kd2 {[%clk 0:00:13]}  Rh3 {[%clk 0:00:06]} 51. b7 {[%clk 0:00:13]} 1-0


[Site "https://www.chess.com"]

[Event "Titled Tuesday Blitz April 25 Early 2023"]
[White "Principe, Gerson"]
[Black "TigranHH"]
[WhiteFideId "3804550"]
[WhiteElo "2229"]
[BlackElo "2323"]
[Result "1-0"]
[Round "02"]
[TimeControl "180+2"]
[Date "2023.04.25"]
[WhiteClock "0:00:17"]
[BlackClock "0:00:01"]

1. d4 {[%clk 0:02:59]}  Nf6 {[%clk 0:02:59]} 2. Nf3 {[%clk 0:02:58]}  d5 {[%clk 0:02:57]} 3. c4 {[%clk 0:02:57]}  e6 {[%clk 0:02:57]} 4. Nc3 {[%clk 0:02:45]}  dxc4 {[%clk 0:02:57]} 5. e3 {[%clk 0:02:44]}  a6 {[%clk 0:02:54]} 6. Bxc4 {[%clk 0:02:40]}  b5 {[%clk 0:02:53]} 7. Bd3 {[%clk 0:02:32]}  Bb7 {[%clk 0:02:52]} 8. O-O {[%clk 0:02:32]}  c5 {[%clk 0:02:46]} 9. Qe2 {[%clk 0:02:31]}  Nbd7 {[%clk 0:02:37]} 10. Rd1 {[%clk 0:02:26]}  Qb6 {[%clk 0:02:36]} 11. a4 {[%clk 0:02:23]}  c4 {[%clk 0:02:01]} 12. Bb1 {[%clk 0:02:13]}  Bb4 {[%clk 0:01:52]} 13. e4 {[%clk 0:01:51]}  O-O-O {[%clk 0:01:19]} 14. axb5 {[%clk 0:01:45]}  axb5 {[%clk 0:01:19]} 15. Be3 {[%clk 0:01:28]}  Ng4 {[%clk 0:01:16]} 16. Bf4 {[%clk 0:01:22]}  e5 {[%clk 0:00:45]} 17. dxe5 {[%clk 0:00:54]}  Bc5 {[%clk 0:00:45]} 18. Bg3 {[%clk 0:00:48]}  Rhe8 {[%clk 0:00:40]} 19. Nd5 {[%clk 0:00:38]}  Qc6 {[%clk 0:00:30]} 20. Bc2 {[%clk 0:00:27]}  Ndxe5 {[%clk 0:00:27]} 21. Nxe5 {[%clk 0:00:20]}  Nxe5 {[%clk 0:00:26]} 22. b3 {[%clk 0:00:20]}  f6 {[%clk 0:00:13]} 23. bxc4 {[%clk 0:00:20]}  bxc4 {[%clk 0:00:12]} 24. Ba4 {[%clk 0:00:19]}  Qe6 {[%clk 0:00:07]} 25. Bxe8 {[%clk 0:00:19]}  Rxe8 {[%clk 0:00:07]} 26. Qc2 {[%clk 0:00:17]}  Kb8 {[%clk 0:00:02]} 27. Rab1 {[%clk 0:00:17]}  Ka8 {[%clk 0:00:01]} 28. Qa4+ {[%clk 0:00:17]} 1-0


[Site "https://www.chess.com"]

[Event "Titled Tuesday Blitz April 25 Early 2023"]
[White "Rodchenkov, Sergey D."]
[Black "Mihajlovskij"]
[WhiteFideId "4168712"]
[WhiteElo "2277"]
[BlackElo "2316"]
[Result "1-0"]
[Round "02"]
[TimeControl "180+2"]
[Date "2023.04.25"]
[WhiteClock "0:00:09"]
[BlackClock "0:00:13"]

1. e4 {[%clk 0:03:00]}  d5 {[%clk 0:02:57]} 2. exd5 {[%clk 0:03:00]}  Qxd5 {[%clk 0:02:58]} 3. Nc3 {[%clk 0:03:00]}  Qe5+ {[%clk 0:02:58]} 4. Be2 {[%clk 0:03:00]}  Bg4 {[%clk 0:02:58]} 5. d4 {[%clk 0:02:57]}  Bxe2 {[%clk 0:02:58]} 6. Ngxe2 {[%clk 0:02:58]}  Qa5 {[%clk 0:02:58]} 7. O-O {[%clk 0:02:56]}  Nf6 {[%clk 0:02:58]} 8. a3 {[%clk 0:02:54]}  Nc6 {[%clk 0:02:53]} 9. b4 {[%clk 0:02:41]}  Nxb4 {[%clk 0:02:53]} 10. Bd2 {[%clk 0:02:37]}  Nc6 {[%clk 0:02:50]} 11. Rb1 {[%clk 0:02:37]}  O-O-O {[%clk 0:02:49]} 12. Nb5 {[%clk 0:02:31]}  Qa6 {[%clk 0:02:45]} 13. c4 {[%clk 0:02:30]}  e6 {[%clk 0:02:42]} 14. Qb3 {[%clk 0:02:27]}  Ne4 {[%clk 0:02:30]} 15. Bf4 {[%clk 0:02:22]}  Nd6 {[%clk 0:02:29]} 16. a4 {[%clk 0:02:19]}  Na5 {[%clk 0:02:25]} 17. Qc2 {[%clk 0:02:06]}  c6 {[%clk 0:02:15]} 18. c5 {[%clk 0:01:46]}  Nxb5 {[%clk 0:02:09]} 19. axb5 {[%clk 0:01:46]}  cxb5 {[%clk 0:02:10]} 20. Ra1 {[%clk 0:01:47]}  Kd7 {[%clk 0:01:57]} 21. Qc3 {[%clk 0:01:17]}  b6 {[%clk 0:01:55]} 22. cxb6 {[%clk 0:01:04]}  axb6 {[%clk 0:01:56]} 23. Qc7+ {[%clk 0:00:56]}  Ke8 {[%clk 0:01:55]} 24. Rfc1 {[%clk 0:00:22]}  Be7 {[%clk 0:01:53]} 25. Ng3 {[%clk 0:00:17]}  Qb7 {[%clk 0:01:16]} 26. Qc3 {[%clk 0:00:17]}  Nc4 {[%clk 0:01:08]} 27. Nh5 {[%clk 0:00:17]}  Bf6 {[%clk 0:01:07]} 28. Be5 {[%clk 0:00:14]}  Bxe5 {[%clk 0:01:03]} 29. dxe5 {[%clk 0:00:15]}  g6 {[%clk 0:01:04]} 30. Nf6+ {[%clk 0:00:14]}  Kf8 {[%clk 0:01:03]} 31. Qg3 {[%clk 0:00:11]}  h5 {[%clk 0:00:56]} 32. h4 {[%clk 0:00:11]}  Kg7 {[%clk 0:00:56]} 33. Rd1 {[%clk 0:00:10]}  Rxd1+ {[%clk 0:00:50]} 34. Rxd1 {[%clk 0:00:11]}  Qb8 {[%clk 0:00:46]} 35. f4 {[%clk 0:00:10]}  Rd8 {[%clk 0:00:42]} 36. Rf1 {[%clk 0:00:10]}  Kf8 {[%clk 0:00:37]} 37. Qg5 {[%clk 0:00:10]}  Rd2 {[%clk 0:00:26]} 38. Kh2 {[%clk 0:00:10]}  Ne3 {[%clk 0:00:23]} 39. Rg1 {[%clk 0:00:07]}  Qb7 {[%clk 0:00:20]} 40. Kh3 {[%clk 0:00:08]}  b4 {[%clk 0:00:18]} 41. Nh7+ {[%clk 0:00:08]}  Ke8 {[%clk 0:00:17]} 42. Nf6+ {[%clk 0:00:09]}  Kd8 {[%clk 0:00:17]} 43. Ne4+ {[%clk 0:00:09]}  Kc8 {[%clk 0:00:16]} 44. Nxd2 {[%clk 0:00:08]}  Qd5 {[%clk 0:00:15]} 45. Nf3 {[%clk 0:00:08]}  b3 {[%clk 0:00:15]} 46. Rc1+ {[%clk 0:00:08]}  Kb7 {[%clk 0:00:15]} 47. Qe7+ {[%clk 0:00:08]}  Ka6 {[%clk 0:00:15]} 48. Qa3+ {[%clk 0:00:09]}  Kb7 {[%clk 0:00:14]} 49. Qe7+ {[%clk 0:00:09]}  Ka6 {[%clk 0:00:14]} 50. Qb4 {[%clk 0:00:09]}  Qb5 {[%clk 0:00:13]} 51. Ra1+ {[%clk 0:00:09]}  Qa5 {[%clk 0:00:13]} 52. Rxa5+ {[%clk 0:00:09]} 1-0


[Site "https://www.chess.com"]

[Event "Titled Tuesday Blitz April 25 Early 2023"]
[White "Rodrigues, Adriano"]
[Black "Belov, Alexei"]
[WhiteFideId "2100908"]
[BlackFideId "4128206"]
[WhiteElo "2313"]
[BlackElo "2512"]
[Result "1-0"]
[Round "02"]
[TimeControl "180+2"]
[Date "2023.04.25"]
[WhiteClock "0:01:13"]
[BlackClock "0:00:31"]

1. e4 {[%clk 0:02:59]}  e6 {[%clk 0:03:00]} 2. d4 {[%clk 0:02:59]}  d5 {[%clk 0:03:00]} 3. Nc3 {[%clk 0:02:59]}  Nf6 {[%clk 0:03:00]} 4. Bg5 {[%clk 0:02:55]}  dxe4 {[%clk 0:02:59]} 5. Nxe4 {[%clk 0:02:54]}  Be7 {[%clk 0:03:00]} 6. Bxf6 {[%clk 0:02:54]}  Bxf6 {[%clk 0:03:00]} 7. Nf3 {[%clk 0:02:55]}  O-O {[%clk 0:03:00]} 8. Bd3 {[%clk 0:02:51]}  Bxd4 {[%clk 0:03:00]} 9. Nxd4 {[%clk 0:02:39]}  Qxd4 {[%clk 0:02:59]} 10. Qh5 {[%clk 0:02:38]}  f5 {[%clk 0:02:34]} 11. Nc3 {[%clk 0:02:22]}  Qe5+ {[%clk 0:02:29]} 12. Kf1 {[%clk 0:02:20]}  Nc6 {[%clk 0:02:19]} 13. Re1 {[%clk 0:02:20]}  Qf6 {[%clk 0:02:18]} 14. h4 {[%clk 0:02:13]}  Ne5 {[%clk 0:01:57]} 15. Rh3 {[%clk 0:02:11]}  Bd7 {[%clk 0:01:46]} 16. Kg1 {[%clk 0:02:03]}  Bc6 {[%clk 0:01:40]} 17. Rg3 {[%clk 0:02:01]}  Nxd3 {[%clk 0:01:32]} 18. Rxd3 {[%clk 0:02:00]}  e5 {[%clk 0:01:29]} 19. Nd5 {[%clk 0:01:51]}  Bxd5 {[%clk 0:01:27]} 20. Rxd5 {[%clk 0:01:51]}  Rfe8 {[%clk 0:01:27]} 21. Red1 {[%clk 0:01:49]}  Rad8 {[%clk 0:01:14]} 22. Rxd8 {[%clk 0:01:46]}  Rxd8 {[%clk 0:01:13]} 23. Rxd8+ {[%clk 0:01:46]}  Qxd8 {[%clk 0:01:13]} 24. Qxf5 {[%clk 0:01:46]}  Qxh4 {[%clk 0:01:06]} 25. Qe6+ {[%clk 0:01:45]}  Kf8 {[%clk 0:01:03]} 26. Qc8+ {[%clk 0:01:45]}  Kf7 {[%clk 0:01:02]} 27. Qxc7+ {[%clk 0:01:45]}  Qe7 {[%clk 0:01:03]} 28. Qc4+ {[%clk 0:01:42]}  Kf6 {[%clk 0:00:56]} 29. Qh4+ {[%clk 0:01:40]}  Ke6 {[%clk 0:00:56]} 30. Qxh7 {[%clk 0:01:39]}  Qg5 {[%clk 0:00:52]} 31. Qh3+ {[%clk 0:01:32]}  Ke7 {[%clk 0:00:49]} 32. Qe3 {[%clk 0:01:31]}  Qf5 {[%clk 0:00:47]} 33. Qxa7 {[%clk 0:01:29]}  Qxc2 {[%clk 0:00:47]} 34. Qxb7+ {[%clk 0:01:29]}  Kf6 {[%clk 0:00:47]} 35. Qb4 {[%clk 0:01:27]}  Qb1+ {[%clk 0:00:46]} 36. Kh2 {[%clk 0:01:27]}  Qxa2 {[%clk 0:00:47]} 37. Qc3 {[%clk 0:01:25]}  Qa7 {[%clk 0:00:44]} 38. f4 {[%clk 0:01:25]}  Kg6 {[%clk 0:00:36]} 39. Qxe5 {[%clk 0:01:24]}  Qf2 {[%clk 0:00:35]} 40. f5+ {[%clk 0:01:19]}  Kh6 {[%clk 0:00:32]} 41. Qg3 {[%clk 0:01:15]}  Qxf5 {[%clk 0:00:29]} 42. Qh3+ {[%clk 0:01:14]}  Kg5 {[%clk 0:00:28]} 43. Qxf5+ {[%clk 0:01:14]}  Kxf5 {[%clk 0:00:29]} 44. Kg3 {[%clk 0:01:14]}  Ke4 {[%clk 0:00:29]} 45. Kg4 {[%clk 0:01:14]}  Kd3 {[%clk 0:00:30]} 46. Kg5 {[%clk 0:01:14]}  Kc4 {[%clk 0:00:29]} 47. Kg6 {[%clk 0:01:13]}  Kb3 {[%clk 0:00:30]} 48. g4 {[%clk 0:01:13]}  Kxb2 {[%clk 0:00:31]} 49. g5 {[%clk 0:01:13]} 1-0


[Site "https://www.chess.com"]

[Event "Titled Tuesday Blitz April 25 Early 2023"]
[White "Ordekalog"]
[Black "Prudnykova, Olga"]
[BlackFideId "14121093"]
[WhiteElo "2512"]
[BlackElo "2113"]
[Result "0-1"]
[Round "02"]
[TimeControl "180+2"]
[Date "2023.04.25"]
[WhiteClock "0:00:15"]
[BlackClock "0:00:24"]

1. d4 {[%clk 0:03:00]}  Nf6 {[%clk 0:02:58]} 2. c4 {[%clk 0:03:00]}  g6 {[%clk 0:02:55]} 3. Nc3 {[%clk 0:02:59]}  d5 {[%clk 0:02:54]} 4. Nf3 {[%clk 0:02:58]}  Bg7 {[%clk 0:02:54]} 5. cxd5 {[%clk 0:02:58]}  Nxd5 {[%clk 0:02:54]} 6. Na4 {[%clk 0:02:57]}  Nb6 {[%clk 0:02:51]} 7. e4 {[%clk 0:02:56]}  Bg4 {[%clk 0:02:47]} 8. Be3 {[%clk 0:02:54]}  O-O {[%clk 0:02:30]} 9. Be2 {[%clk 0:02:54]}  Bxf3 {[%clk 0:02:28]} 10. gxf3 {[%clk 0:02:53]}  e5 {[%clk 0:02:26]} 11. d5 {[%clk 0:02:44]}  c6 {[%clk 0:02:26]} 12. Nxb6 {[%clk 0:02:36]}  axb6 {[%clk 0:02:26]} 13. dxc6 {[%clk 0:02:36]}  Nxc6 {[%clk 0:02:18]} 14. Qxd8 {[%clk 0:02:34]}  Rfxd8 {[%clk 0:02:16]} 15. Bxb6 {[%clk 0:02:34]}  Rd6 {[%clk 0:02:05]} 16. Bc5 {[%clk 0:02:31]}  Rdd8 {[%clk 0:02:03]} 17. Bc4 {[%clk 0:02:22]}  Nd4 {[%clk 0:02:02]} 18. Bxd4 {[%clk 0:02:21]}  exd4 {[%clk 0:02:02]} 19. Bd3 {[%clk 0:02:18]}  Rd6 {[%clk 0:01:55]} 20. Ke2 {[%clk 0:02:12]}  Be5 {[%clk 0:01:54]} 21. h4 {[%clk 0:02:08]}  f6 {[%clk 0:01:52]} 22. h5 {[%clk 0:02:07]}  g5 {[%clk 0:01:51]} 23. Rhc1 {[%clk 0:02:05]}  Rb6 {[%clk 0:01:45]} 24. Rc2 {[%clk 0:02:00]}  Kg7 {[%clk 0:01:44]} 25. b3 {[%clk 0:01:44]}  Rxb3 {[%clk 0:01:41]} 26. h6+ {[%clk 0:01:42]}  Kg6 {[%clk 0:01:32]} 27. f4 {[%clk 0:01:42]}  Bxf4 {[%clk 0:01:06]} 28. e5+ {[%clk 0:01:22]}  f5 {[%clk 0:00:59]} 29. axb3 {[%clk 0:01:18]}  Rxa1 {[%clk 0:00:58]} 30. e6 {[%clk 0:01:18]}  Ra5 {[%clk 0:00:53]} 31. Bc4 {[%clk 0:01:16]}  Re5+ {[%clk 0:00:50]} 32. Kd3 {[%clk 0:01:15]}  b5 {[%clk 0:00:50]} 33. Bxb5 {[%clk 0:00:31]}  Rxb5 {[%clk 0:00:49]} 34. Rc6 {[%clk 0:00:30]}  Rxb3+ {[%clk 0:00:45]} 35. Kxd4 {[%clk 0:00:30]}  Rb2 {[%clk 0:00:32]} 36. e7+ {[%clk 0:00:16]}  Kf7 {[%clk 0:00:32]} 37. Re6 {[%clk 0:00:16]}  Rb8 {[%clk 0:00:24]} 38. Kd5 {[%clk 0:00:15]}  Re8 {[%clk 0:00:24]} 0-1


[Site "https://www.chess.com"]

[Event "Titled Tuesday Blitz April 25 Early 2023"]
[White "Harris, Ian"]
[Black "Shvedova, Alexandra"]
[WhiteFideId "2020092"]
[BlackFideId "54154782"]
[WhiteElo "2307"]
[BlackElo "2057"]
[Result "0-1"]
[Round "02"]
[TimeControl "180+2"]
[Date "2023.04.25"]
[WhiteClock "0:00:19"]
[BlackClock "0:00:43"]

1. d4 {[%clk 0:03:00]}  e6 {[%clk 0:03:00]} 2. Bf4 {[%clk 0:02:58]}  Nf6 {[%clk 0:02:59]} 3. e3 {[%clk 0:02:58]}  b6 {[%clk 0:02:59]} 4. Nd2 {[%clk 0:02:56]}  Bb7 {[%clk 0:02:59]} 5. Ngf3 {[%clk 0:02:56]}  d5 {[%clk 0:02:54]} 6. Bd3 {[%clk 0:02:54]}  Bd6 {[%clk 0:02:54]} 7. Ne5 {[%clk 0:02:54]}  a6 {[%clk 0:02:49]} 8. a3 {[%clk 0:02:45]}  Nbd7 {[%clk 0:02:48]} 9. Qf3 {[%clk 0:02:45]}  Qe7 {[%clk 0:02:44]} 10. g4 {[%clk 0:02:44]}  h6 {[%clk 0:02:31]} 11. h4 {[%clk 0:02:41]}  c5 {[%clk 0:02:30]} 12. c3 {[%clk 0:02:40]}  O-O-O {[%clk 0:02:17]} 13. Qg3 {[%clk 0:02:36]}  Bxe5 {[%clk 0:02:06]} 14. Bxe5 {[%clk 0:02:27]}  Nxe5 {[%clk 0:02:05]} 15. dxe5 {[%clk 0:02:22]}  Ne4 {[%clk 0:02:02]} 16. Bxe4 {[%clk 0:02:17]}  dxe4 {[%clk 0:02:03]} 17. Nc4 {[%clk 0:02:17]}  Qc7 {[%clk 0:01:58]} 18. Nd6+ {[%clk 0:02:14]}  Kb8 {[%clk 0:01:59]} 19. O-O-O {[%clk 0:02:12]}  f6 {[%clk 0:01:55]} 20. Rd2 {[%clk 0:02:01]}  Rd7 {[%clk 0:01:53]} 21. Rhd1 {[%clk 0:02:00]}  Rhd8 {[%clk 0:01:53]} 22. g5 {[%clk 0:01:59]}  hxg5 {[%clk 0:01:47]} 23. hxg5 {[%clk 0:01:59]}  fxe5 {[%clk 0:01:36]} 24. Qxe5 {[%clk 0:01:57]}  Bd5 {[%clk 0:01:35]} 25. c4 {[%clk 0:01:16]}  Qxd6 {[%clk 0:01:32]} 26. Qc3 {[%clk 0:01:12]}  Qe7 {[%clk 0:01:26]} 27. Qe5+ {[%clk 0:01:11]}  Qd6 {[%clk 0:01:19]} 28. Qc3 {[%clk 0:01:11]}  Qc7 {[%clk 0:01:16]} 29. cxd5 {[%clk 0:01:08]}  exd5 {[%clk 0:01:17]} 30. Qc2 {[%clk 0:00:49]}  Qe5 {[%clk 0:01:15]} 31. Qa4 {[%clk 0:00:46]}  Kb7 {[%clk 0:01:14]} 32. Rg1 {[%clk 0:00:41]}  d4 {[%clk 0:01:12]} 33. Rg4 {[%clk 0:00:34]}  Qf5 {[%clk 0:01:08]} 34. Rf4 {[%clk 0:00:31]}  Qxg5 {[%clk 0:01:07]} 35. Rxe4 {[%clk 0:00:27]}  Qg1+ {[%clk 0:01:01]} 36. Kc2 {[%clk 0:00:20]}  Qg6 {[%clk 0:01:01]} 37. f3 {[%clk 0:00:20]}  Re7 {[%clk 0:00:53]} 38. exd4 {[%clk 0:00:19]}  Rxe4 {[%clk 0:00:52]} 39. fxe4 {[%clk 0:00:19]}  Qxe4+ {[%clk 0:00:53]} 40. Kc3 {[%clk 0:00:20]}  Qe3+ {[%clk 0:00:48]} 41. Rd3 {[%clk 0:00:19]}  cxd4+ {[%clk 0:00:45]} 42. Kc2 {[%clk 0:00:19]}  Rc8+ {[%clk 0:00:43]} 0-1


[Site "https://www.chess.com"]